Cogmind - Beta 17.1 @@@ ROGUE MODE // 2026.09.01 @ 14:17:43 Player: 4R-ZE3 Result: Destroyed by Y-54 Guardian with Flak Gun Performance ------------- Evolutions (0) 0 Regions Visited (3) 600 Robots Destroyed (28) 140 Value Destroyed (767) 767 Prototype IDs (1) 20 Alien Tech Used (0) 0 Bonus (5286) 5286 TOTAL SCORE: 6813 Bonus ------- Prayed to X0-1V1 5000 Major X0-1V1 Interference 300 Friendly Fire -14 Cogmind --------- Core Integrity 0/250 Matter 91/300 Energy 250/250 System Corruption 1% Temperature Warm (142) Movement Treading (160) Location -7/Recycling Parts ------- > --- POWER (1) -------- Ion Engine > --- PROPULSION (2) --- Light Treads Light Treads > --- UTILITY (2) ------ Large Storage Unit X0-1V1's Piety Tracker > --- WEAPON (2) ------- Subdweller Laser Light Assault Rifle > --- INVENTORY (15) --- Subdweller Power Source Wheel Compact Wheel Subdweller Monowheel Heat Sink Heat Sink Small Storage Unit Subdweller Optics Subdweller Optics Core Shielding Light Assault Rifle Grenade Launcher Peak State ------------ > --- POWER ------------ Ion Engine > --- PROPULSION ------- Light Treads Light Treads > --- UTILITY ---------- Large Storage Unit X0-1V1's Piety Tracker > --- WEAPON ----------- Subdweller Laser Light Assault Rifle > --- INVENTORY -------- Subdweller Power Source Wheel Compact Wheel Subdweller Monowheel Heat Sink Heat Sink Small Storage Unit Subdweller Optics Subdweller Optics Core Shielding Light Assault Rifle Grenade Launcher [Rating: 21] Favorites ----------- Power Ion Engine Engine Ion Engine Propulsion Light Treads Treads Light Treads Wheel Compact Wheel Utility Large Storage Unit Device X0-1V1's Piety Tracker Storage Large Storage Unit Protection Core Shielding Weapon Assault Rifle Energy Gun Medium Laser Ballistic Gun Assault Rifle Launcher Grenade Launcher Build | -11 -10 -10 -7 ------- Run | Yrd Mat Sub Rec Slots Evolved . | . . . . Power . | . . . . Propulsion . | . . . . Utility . | . . . . Weapon . | . . . . Parts Attached 20 | 7 8 5 . Power 4 | 1 2 1 . Engine 4 | 1 2 1 . Core . | . . . . Reactor . | . . . . Propulsion 5 | 3 1 1 . Treads 4 | 2 1 1 . Leg . | . . . . Wheel 1 | 1 . . . Hover . | . . . . Flight . | . . . . Utility 4 | 1 2 1 . Device 1 | . . 1 . Storage 2 | 1 1 . . Processor . | . . . . Hackware . | . . . . Protection 1 | . 1 . . Artifact . | . . . . Weapon 7 | 2 3 2 . Energy Gun 2 | 1 . 1 . Energy Cannon . | . . . . Ballistic Gun 4 | 1 3 . . Ballistic Cannon . | . . . . Launcher 1 | . . 1 . Special Weapon . | . . . . Impact Weapon . | . . . . Slashing Weapon . | . . . . Piercing Weapon . | . . . . Special Melee Weapon . | . . . . Unidentified Prototypes 1 | . . 1 . Parts Lost 8 | . 6 2 . Power 3 | . 2 1 . Propulsion 2 | . 2 . . Utility . | . . . . Weapon 3 | . 2 1 . Highest Loss Streak 3 | . 3 2 . To Critical Strikes . | . . . . Average Backups 7 | 1 6 10 12 Power . | . . 1 1 Propulsion 2 | . 2 2 3 Utility 2 | . 2 4 6 Weapon 1 | . 2 1 2 Tool/Special . | . . . . Unused Backups 7 | . . . 7 Power 1 | . . . 1 Propulsion 2 | . . . 2 Utility 4 | . . . 4 Weapon . | . . . . Tool/Special . | . . . . Average Slot Usage (%) 90 | . 88 96 100 Engine 11 | . 11 10 14 Treads 22 | . 21 28 28 Device 3 | . . 13 14 Storage 14 | . 14 14 14 Protection 10 | . 13 . . Energy Gun 7 | . 8 4 14 Ballistic Gun 19 | . 19 20 12 Peak Build Rating 21 | 6 8 21 21 Average Rating 9 | 4 6 19 21 On Entrance 8 | . 6 8 21 Avg Prop Armor Cover (%) 5 | 5 . . . Naked Turns . | . . . . Heaviest Build 33 | 11 29 33 33 Greatest Support 40 | 40 40 40 40 Greatest Overweight (x) 1 | . 1 . . Average Overweight (x) . | . . . . Largest Inventory Capacity 15 | 8 15 15 15 Average Capacity 14 | 7 14 15 15 Most Carried 13 | 5 10 13 12 Average Carried 7 | 2 6 10 12 Final Capacity 15 | 8 15 15 15 Final Carried 12 | 4 10 12 12 Class Distribution -------------------- 100% | Mutant Dominant Class ---------------- Mutant | -10/Materials Mutant | -10/Subcaves Mutant | -7/Recycling Resources | -11 -10 -10 -7 ----------- Run | Yrd Mat Sub Rec Matter Collected 612 | 211 318 83 . Remotely . | . . . . Salvage Created 978 | . 853 125 . Parts 48 | . 38 10 . Haulers Intercepted 1 | . 1 . . Recyclers Shooed . | . . . . Parts Field Recycled . | . . . . Retrieved Matter . | . . . . Parts Self-Destructed 4 | . . 4 . Prevented . | . . . . Parts Restored . | . . . . Kills | -11 -10 -10 -7 ------- Run | Yrd Mat Sub Rec Combat Hostiles Destroyed 24 | . 18 6 . Guns 21 | . 18 3 . AOE 3 | . . 3 . Classes Destroyed 6 | . 4 2 . Hauler 1 | . 1 . . Recycler 1 | . 1 . . Turret 2 | . . 2 . Swarmer 7 | . 3 4 . Grunt 15 | . 15 . . Subdweller 2 | . . 2 . Best Kill Streak 4 | . 3 4 . Combat Bots Only 4 | . 3 4 . Max Kills in Single Turn 2 | . 1 2 . Gunslinging . | . . . . Exploded 2 | . . 2 . Melee . | . . . . Uniques/NPCs Destroyed . | . . . . Combat | -11 -10 -10 -7 -------- Run | Yrd Mat Sub Rec Hostile Shots Fired 168 | . 93 48 27 Missed 41 | . 16 19 6 Hits 127 | . 77 29 21 Projectile 127 | . 77 29 21 Critical Strikes 1 | . 1 . . Damage Taken 1393 | . 912 344 137 Core 250 | . 143 76 31 Absorbed by Shields . | . . . . Redirected to Shielding 30 | . 30 . . Core Remaining (%) 100 | 100 . . . Volleys Fired 109 | . 75 31 3 Largest 2 | . 2 2 2 Hottest 80 | . 70 60 80 Shots Fired 193 | . 148 39 6 Gun 176 | . 148 22 6 Cannon . | . . . . Launcher 17 | . . 17 . Special . | . . . . Kinetic 113 | . 94 16 3 Thermal 63 | . 54 6 3 Explosive 17 | . . 17 . Electromagnetic . | . . . . Robot Hit Streak 14 | . 14 11 7 Robot Miss Streak 4 | . 4 2 . Penetration Max . | . . . . Secondary Targets 2 | . 1 1 . Max Gunslinging Chain 1 | . 1 1 . Shots Hit Robots 121 | . 98 17 6 Core Hits 68 | . 41 24 3 Critical Kills 1 | . 1 . . Critical Parts Destroyed . | . . . . Critical Strikes 9 | . 9 . . Burn 8 | . 8 . . Destroy 1 | . 1 . . Melee Attacks . | . . . . Impact . | . . . . Slashing . | . . . . Piercing . | . . . . Sneak Attacks . | . . . . Combat Hostiles . | . . . . Follow-up Attacks . | . . . . Damage Inflicted 1760 | . 1150 523 87 Guns 1382 | . 1148 147 87 Cannons . | . . . . Explosions 376 | . . 376 . Melee . | . . . . Ramming 2 | . 2 . . Kinetic 769 | . 620 125 24 Thermal 613 | . 528 22 63 Explosive 376 | . . 376 . Electromagnetic . | . . . . Impact . | . . . . Slashing . | . . . . Piercing . | . . . . Highest Corruption 1 | . 1 1 1 Average Corruption 1 | . 1 1 1 Corruption Purged . | . . . . Corruption Blocked . | . . . . Effects 10 | . 8 2 . Message Errors 1 | . . 1 . Matter Fused 1 | . 1 . . Heat Flow Errors 4 | . 3 1 . Energy Discharges 1 | . 1 . . Misfires 2 | . 2 . . Weapon Failures 1 | . 1 . . Overload Shots . | . . . . Overflow Damage 1 | . . 1 . Projectiles . | . . . . Explosions 1 | . . 1 . Melee . | . . . . Knockbacks . | . . . . Impact . | . . . . Kinetic . | . . . . Secondary . | . . . . Self-Inflicted Damage 60 | . . 60 . Shots 2 | . . 2 . Rammed 1 | . 1 . . Targets Rammed 1 | . 1 . . Kicked . | . . . . Crushed . | . . . . Highest Temperature 198 | . 198 81 124 Average Temperature 65 | . 66 42 66 Received Heat Transfer 633 | . 501 90 42 Siege Activations . | . . . . Martial Activations . | . . . . Shielding Activations . | . . . . Robots Disrupted . | . . . . Combat Hostiles . | . . . . Robots Corrupted . | . . . . Combat Hostiles . | . . . . Parts Fried . | . . . . Impact Corruptions . | . . . . Robots Melted . | . . . . Combat Hostiles . | . . . . Parts Melted 12 | . 11 1 . Heat Transferred 2246 | . 2146 25 75 Parts Sabotaged . | . . . . Parts Stolen . | . . . . Parts Stripped . | . . . . Power Chain Reactions . | . . . . Alert | -11 -10 -10 -7 ------- Run | Yrd Mat Sub Rec Maximum Alert Level 1 | . 1 . 1 Low Security (%) 88 | 100 92 . . Level 1 11 | . 7 . 100 Level 2 . | . . . . Level 3 . | . . . . Level 4 . | . . . . Level 5 . | . . . . High Security . | . . . . Max Security . | . . . . Peak Influence 238 | . 221 . 238 Initial 204 | . . . 204 Average 112 | . 112 . 224 Influence Increases 1073 | . 564 465 44 Destroy 0b10 Robot/C 480 | . 360 120 . Destroy 0b10 Robot/NC 10 | . 10 . . Destroy Leader 82 | . 82 . . Successful Hack 19 | . 5 . 14 Select Force Hacks 90 | . 60 . 30 Destroy Structure 2 | . 2 . . Lose Combat Pursuer 390 | . 45 345 . Influence Decreases 855 | . 442 162 251 Entered New Map 280 | . . 59 221 Time Decay 512 | . 382 100 30 Lost Part 63 | . 60 3 . Squads Dispatched 4 | . 4 . . Investigation 2 | . 2 . . Extermination . | . . . . Reinforcement 2 | . 2 . . Assault . | . . . . Garrison . | . . . . Intercept . | . . . . Searches Triggered . | . . . . Construction Impeded . | . . . . Haulers Reinforced . | . . . . Active Scanning Responses . | . . . . Cargo Convoy Interrupts . | . . . . Stealth | -11 -10 -10 -7 --------- Run | Yrd Mat Sub Rec Distress Signals 4 | . 4 . . Communications Jammed . | . . . . Distress Signals . | . . . . Times Spotted 47 | . 29 17 1 Peak Tracking Total 6 | . 5 6 1 Tactical Retreats 7 | . 3 4 . Traps | -11 -10 -10 -7 ------- Run | Yrd Mat Sub Rec Traps Triggered 1 | . 1 . . Indirectly . | . . . . Trap Hack Attempts . | . . . . Triggered . | . . . . Disarmed . | . . . . Reprogrammed . | . . . . Reused . | . . . . Traps Extracted . | . . . . Installed . | . . . . Triggered . | . . . . Machines | -11 -10 -10 -7 ---------- Run | Yrd Mat Sub Rec Machines Disabled 3 | . . 3 . Max in Single Turn 2 | . . 2 . Machines Repaired . | . . . . Machines Dismantled . | . . . . Machines Sabotaged . | . . . . Overloaded Fab Kills . | . . . . Hacking | -11 -10 -10 -7 --------- Run | Yrd Mat Sub Rec Machines Accessed 8 | . 6 . 2 Terminals 5 | . 4 . 1 Fabricators . | . . . . Repair Stations . | . . . . Recycling Units 3 | . 2 . 1 Scanalyzers . | . . . . Garrison Access . | . . . . Total Hacks 14 | . 12 . 2 Successful 6 | . 4 . 2 Failed 7 | . 7 . . Catastrophic . | . . . . Database Lockouts 1 | . 1 . . Manual 15 | . 13 . 2 Terminals 11 | . 10 . 1 Fabricators . | . . . . Repair Stations . | . . . . Recycling Units 3 | . 2 . 1 Scanalyzers . | . . . . Garrison Access . | . . . . Terminal Hacks 1 | . 1 . . Robot Analysis 1 | . 1 . . Fabricator Hacks . | . . . . Repair Station Hacks . | . . . . Recycling Unit Hacks . | . . . . Scanalyzer . | . . . . Garrison Access Hacks . | . . . . Unauthorized Hacks 5 | . 3 . 2 Terminals 2 | . 1 . 1 Botnet 2 | . 1 . 1 Fabricators . | . . . . Repair Stations . | . . . . Recycling Units 3 | . 2 . 1 Tunnel 3 | . 2 . 1 Scanalyzers . | . . . . Garrison Access . | . . . . Data Cores Recovered . | . . . . Used . | . . . . Hacking Detections 5 | . 4 . 1 Full Trace Events . | . . . . Feedback Events . | . . . . Feedback Blocked . | . . . . Robot Schematics Acquired . | . . . . Robots Built . | . . . . Authchips . | . . . . Time . | . . . . Total Robot Build Rating . | . . . . Part Schematics Acquired . | . . . . Parts Built . | . . . . Authchips . | . . . . Time . | . . . . Total Part Build Rating . | . . . . Part Studies Acquired . | . . . . Parts Repaired . | . . . . Time . | . . . . Parts Recycled . | . . . . Recycled Matter . | . . . . Retrieved Matter . | . . . . Retrieved Components . | . . . . Parts Scanalyzed . | . . . . Part Schematics Acquired . | . . . . Parts Damaged . | . . . . Bothacking | -11 -10 -10 -7 ------------ Run | Yrd Mat Sub Rec Used RIF Installer . | . . . . Robots Hacked . | . . . . Non-combat . | . . . . Combat . | . . . . Robot Hacks Applied . | . . . . Relay Couplers Released . | . . . . Fabnet Peak Effective % . | . . . . Robots Rewired . | . . . . Allies Hacked . | . . . . Hacks Repelled . | . . . . Allies | -11 -10 -10 -7 -------- Run | Yrd Mat Sub Rec Total Allies . | . . . . Largest Group . | . . . . Highest-Rated Group . | . . . . Highest-Rated Ally . | . . . . Total Orders . | . . . . Ally Attacks . | . . . . Total Damage . | . . . . Kills . | . . . . Allies Corrupted . | . . . . Allies Melted . | . . . . X0-1V1 Amusement Gains 9 | . 9 . . Average Entertainment 5 | . 9 6 3 Bad Acts 2 | . . 1 1 Intel | -11 -10 -10 -7 ------- Run | Yrd Mat Sub Rec Active Infowar (turns) . | . . . . Robot Analysis Total 1 | . 1 . . Derelict Logs Recovered . | . . . . Drone Launches . | . . . . Drone Recoveries . | . . . . Exploration | -11 -10 -10 -7 ------------- Run | Yrd Mat Sub Rec Turns Passed 1835 | 71 1354 339 71 Spaces Moved 789 | 39 555 157 38 Core 1 | 1 . . . Treads 782 | 32 555 157 38 Legs . | . . . . Wheels 6 | 6 . . . Hover . | . . . . Flight . | . . . . Fastest Speed 50 | 50 160 160 160 Average Speed 183 | 147 194 160 160 Slowest Speed 240 | 160 240 160 160 Overloaded Moves . | . . . . Propulsion Burnouts . | . . . . Robots Hopped . | . . . . Potential Cave-ins . | . . . . Cave-ins Triggered . | . . . . Exploration Rate (%) 29 | 4 92 13 9 Regions Visited 3 Branch Regions 2 Pre-discovered Areas 3 | . 2 . 1 Known Exits Taken . | . . . . Unknown Exits Taken 3 | 1 1 1 . Scrap Searched . | . . . . Spaces Dug . | . . . . Terrain Destroyed 28 | . . 28 . Melee . | . . . . Projectile 1 | . . 1 . AOE 27 | . . 27 . Terrain Rammed . | . . . . Walls Destroyed . | . . . . Machines Disabled . | . . . . Actions | -11 -10 -10 -7 --------- Run | Yrd Mat Sub Rec Total 987 | 50 687 207 43 Wait 50 | . 40 9 1 Move 786 | 38 554 156 38 Hop . | . . . . Pick Up 17 | 4 8 5 . Fast Attach 9 | 6 3 . . Attach 7 | 1 3 3 . Detach 1 | 1 . . . Swap 6 | . 2 3 1 Drop . | . . . . Fire 109 | . 75 31 3 Melee . | . . . . Ram . | . . . . Kick . | . . . . Crush 1 | . 1 . . Escape Stasis . | . . . . Rewire 1 | . 1 . . Trap . | . . . . Miscellaneous . | . . . . Route ------- -11/Scrapyard -10/Materials (discovered 5 exits: [*Mat x3] / [*Min] / [*Sub]) -10/Subcaves -7/Recycling History --------- Turn | Location | Event 12 | -11/Scrapyard | Discovered new exit (range 16) 72 | -11/Scrapyard | Entered Materials 220 | -10/Materials | Discovered new exit (range 4) 317 | -10/Materials | Build established: Mutant 499 | -10/Materials | Discovered new exit (range 15) 622 | -10/Materials | Discovered new exit (range 8) 675 | -10/Materials | Lost 3 parts (1p1n1w) 781 | -10/Materials | Discovered new exit (range 3) 853 | -10/Materials | Central database locked down 1313 | -10/Materials | Core integrity fell below 50% 1396 | -10/Materials | Discovered new exit (range 8) 1418 | -10/Materials | Prayed at D.C.S.S. Altar Unit 1426 | -10/Materials | Entered Subcaves 1427 | -10/Subcaves | Approached by a straggling Scientist 1669 | -10/Subcaves | Discovered new exit (range 12) 1676 | -10/Subcaves | Core integrity fell below 20% 1765 | -10/Subcaves | Entered Recycling 1817 | -7/Recycling | X0-1V1 caused items to flee you 1836 | -7/Recycling | Destroyed by Y-54 Guardian with Flak Gun Last Messages --------------- here" 01736_ The unstable cave ceiling collapses. 01752_ Acquired 4 matter. 01764_ The unstable cave ceiling collapses. LOCATION=UNKNOWN GOAL=ESCAPE 01769_ Connecting with Terminal... 01769_ Current location identified: Recycling >>Trojan(Botnet) Trojan loaded successfully. Testing... Terminal linked with 0 systems. Awaiting botnet instructions. 01786_ Connecting with Recycling Unit... >>Force(Tunnel) DISCOVERED[-4/Archives] 01817_ X0-1V1: "Your visage is terrifying!" 01829_ Ranged accuracy returns to normal. 01830_ Y-54 Guardian springs to life. 01836_ X0-1V1 guffaws! Map ----- +----------------------------------------------------+ | ???????????????????????????????????? | | ???????????????????????????????????? | | ???????????????????????????????????? | | ???????????????????????????????????? | | ???????????????????????????????????? | | ??########?????????????????????????? | | ??# ????????????????????????? | | ??# """#???????????????????????? | | ??# """#???????????????????????? | | ??# """#???????????????????????? | | ??# #???????????????????????? | | ??# """#???????????????????????? | | ??# """#???????????????????????? | | ??# """#???????????????????????? | | ??# #???????????????????????? | | ??##+#######???????????????????????? | | ???# #?????????????????????????????? | | ???# #?????????????????????????????? | | ???# #?????????????????????????????? | | ?### #?????????????????????????????? | | ?#"" #?????????????????????????????? | | ?#"Y #?????????????????????????????? | | ?#"" #?????????????????????????????? | | ?### #??????##?????????????????????? | | ???# #######Y#### #????????????? | | ???# @ "" ????????????? | | ???# T" ????????????? | | ???# r ???????????? | | ???# ########## ###??????????? | | ???# #???????????+###????????????? | | ?### #???????????????????????????? | | ?#"" #???????????????????????????? | | ?#T #???????????????????????????? | | ?### #???????????????????????????? | | ???# #???????????????????????????? | | ???#####???????????????????????????? | | ???????????????????????????????????? | | ???????????????????????????????????? | | ???????????????????????????????????? | | ???????????????????????????????????? | | ???????????????????????????????????? | | ???????????????????????????????????? | | ???????????????????????????????????? | | ???????????????????????????????????? | | ???????????????????????????????????? | | ???????????????????????????????????? | | ???????????????????????????????????? | | ???????????????????????????????????? | | ???????????????????????????????????? | | ???????????????????????????????????? | +----------------------------------------------------+ Best States ------------- Heat Dissipation 25 Energy Generation 10 Energy Capacity 250 Matter Stores 300 Matter Capacity 300 Sight Range 16 Terrain Scan Density 10 Core Shielding 20 Evasion (%) 40 Recoil Reduction 2 Item Schematics ----------------- None Robot Schematics ------------------ None Fabricated ------------ Nothing Repaired ---------- Nothing Studied --------- None Alien Tech Used ----------------- None Achievements -------------- None Challenges ------------ None Game ------ Seed NovaGravityMultitool Manual? 0 Play Time 00:08:37 Cumulative 314.5 hours Start 2026.09.01 @ 14:09:28 End 2026.09.01 @ 14:17:43 Sessions 1 Manual Loads 0 Difficulty Rogue Special Mode None Game No. 301 Rogue 247 Adventurer 54 Explorer 0 Win Type - Total 13 Types 9/0/1/1/0/0/0/1/0/1 Lore% 78 Gallery% 68 Achievement% 62 Wizard Run 0 Options --------- Layout 1 ASCII 0 Keyboard 0 Movement Mouse Keybinds 1 Fullscreen 2 Font 32/Tamsyn Map View 50x35 Zoom Use 0% Tactical HUD 1 Map Filters NONE Filters NONE Steam 1 RUN: 50b20c3c-894d-4c46-bad7-f0140d1ed650